fUSD/lending_fUSD_20240426
["ID","MTS","AMOUNT","RATE_DAILY","PERIOD"]
[323628278,1714144264449,-500.0,0.00012113,2]
[323628279,1714144264458,-500.0,0.00012113,2]
[323628280,1714144264467,-1027.87,0.00012113,2]
[323628281,1714144264476,-500.0,0.00012113,2]
[323628282,1714144264486,-500.0,0.00012113,2]
[323628283,1714144264496,-537.7,0.00012113,2]
[323628284,1714144264506,-1329.4,0.00012113,2]
[323628285,1714144264515,-3382.19,0.00012113,2]
[323628286,1714144264525,-500.0,0.00012113,2]
[323628287,1714144264534,-575.5,0.00012113,2]
[323628288,1714144264544,-3841.15,0.00012113,2]
[323628289,1714144264554,-500.0,0.00012113,2]
[323628290,1714144264563,-500.0,0.00012113,2]
[323628291,1714144264573,-500.0,0.00012113,2]
[323628292,1714144264583,-2727.56,0.00012113,2]
[323628293,1714144264595,-500.0,0.00012113,2]
[323628294,1714144264606,-500.0,0.00012113,2]
[323628295,1714144264616,-537.54,0.00012113,2]
[323628296,1714144264626,-500.0,0.00012113,2]
[323628297,1714144264637,-500.0,0.00012113,2]
[323628298,1714144264647,-161.03499803,0.00012113,2]
[323628299,1714144264666,-500.0,0.00012113,2]
[323628300,1714144264679,-504.60433269,0.00012113,2]
[323628301,1714144264690,-500.0,0.00012113,2]
[323628302,1714144264699,-500.0,0.00012113,2]
[323628303,1714144264709,-500.0,0.00012113,2]
[323628304,1714144264719,-785.13,0.00012113,2]
[323628305,1714144264729,-500.0,0.00012113,2]
[323628306,1714144264740,-558.17,0.00012113,2]
[323628307,1714144264750,-1116.4,0.00012113,2]
[323628308,1714144264760,-500.0,0.00012113,2]
[323628309,1714144264770,-504.95104709,0.00012113,2]
[323628310,1714144264780,-500.0,0.00012113,2]
[323628311,1714144264790,-500.0,0.00012113,2]
[323628312,1714144264801,-579.13,0.00012113,2]
[323628313,1714144264810,-500.0,0.00012113,2]
[323628314,1714144264820,-957.84,0.00012113,2]
[323628315,1714144264830,-500.0,0.00012113,2]
[323628316,1714144264839,-500.0,0.00012113,2]
[323628317,1714144264849,-664.1,0.00012113,2]
[323628318,1714144264859,-271.64658889,0.00012113,2]
[323628319,1714144264869,-500.0,0.00012113,2]
[323628320,1714144264879,-500.0,0.00012113,2]
[323628321,1714144264888,-500.0,0.00012113,2]
[323628322,1714144264898,-882.25,0.00012113,2]
[323628323,1714144264912,-500.0,0.00012113,2]
[323628324,1714144264922,-620.04,0.00012113,2]
[323628325,1714144264932,-500.0,0.00012113,2]
[323628326,1714144264941,-500.0,0.00012113,2]
[323628327,1714144264952,-764.06,0.00012113,2]
[323628328,1714144264961,-500.0,0.00012113,2]
[323628329,1714144264971,-500.0,0.00012113,2]
[323628330,1714144264981,-500.0,0.00012113,2]
[323628331,1714144264991,-150.0,0.00012113,2]
[323628332,1714144265001,-500.0,0.00012113,2]
[323628333,1714144265011,-500.0,0.00012113,2]
[323628334,1714144265021,-500.0,0.00012113,2]
[323628335,1714144265030,-758.65,0.00012113,2]
[323628336,1714144265039,-500.0,0.00012113,2]
[323628337,1714144265048,-500.0,0.00012113,2]
[323628338,1714144265057,-500.0,0.00012113,2]
[323628339,1714144265067,-588.16609225,0.00012113,2]
[323628340,1714144265077,-500.0,0.00012113,2]
[323628341,1714144265087,-954.46,0.00012113,2]
[323628342,1714144265097,-500.0,0.00012113,2]
[323628343,1714144265107,-680.81,0.00012113,2]
[323628344,1714144265117,-500.0,0.00012113,2]
[323628345,1714144265127,-599.48727544,0.00012113,2]
[323628346,1714144265137,-411.7,0.00012113,2]
[323628347,1714144265147,-500.0,0.00012113,2]
[323628348,1714144265164,-362.62,0.00012113,2]
[323628349,1714144265174,-500.0,0.00012113,2]
[323628350,1714144265184,-500.0,0.00012113,2]
[323628351,1714144265193,-500.0,0.00012113,2]
[323628352,1714144265203,-500.0,0.00012113,2]
[323628353,1714144265212,-500.0,0.00012113,2]
[323628354,1714144265222,-500.0,0.00012113,2]
[323628355,1714144265231,-500.0,0.00012113,2]
[323628356,1714144265241,-739.45,0.00012113,2]
[323628357,1714144265251,-500.0,0.00012113,2]
[323628358,1714144265262,-500.0,0.00012113,2]
[323628359,1714144265460,-500.0,0.00012113,2]
[323628360,1714144265471,-500.0,0.00012113,2]
[323628361,1714144265480,-529.62,0.00012113,2]
[323628362,1714144265491,-500.0,0.00012113,2]
[323628363,1714144265502,-500.0,0.00012113,2]
[323628364,1714144265512,-500.0,0.00012113,2]
[323628365,1714144265522,-597.21,0.00012113,2]
[323628366,1714144265532,-1069.36,0.00012113,2]
[323628367,1714144265542,-500.0,0.00012113,2]
[323628368,1714144265552,-500.0,0.00012113,2]
[323628369,1714144265562,-500.0,0.00012113,2]
[323628370,1714144265572,-500.0,0.00012113,2]
[323628371,1714144265581,-500.0,0.00012113,2]
[323628372,1714144265592,-500.0,0.00012113,2]
[323628373,1714144265602,-427.44,0.00012113,2]
[323628374,1714144265617,-500.0,0.00012113,2]
[323628375,1714144265627,-500.0,0.00012113,2]
[323628376,1714144265639,-500.0,0.00012113,2]
[323628377,1714144265652,-500.0,0.00012113,2]
[323628378,1714144265665,-500.0,0.00012113,2]
[323628379,1714144265676,-500.0,0.00012113,2]
[323628380,1714144265693,-500.0,0.00012113,2]
[323628381,1714144265703,-606.85,0.00012113,2]
[323628382,1714144265714,-500.0,0.00012113,2]
[323628383,1714144265726,-500.0,0.00012113,2]
[323628384,1714144265738,-500.0,0.00012113,2]
[323628385,1714144265750,-743.34,0.00012113,2]
[323628386,1714144265761,-500.0,0.00012113,2]
[323628387,1714144265771,-500.0,0.00012113,2]
[323628388,1714144265782,-500.0,0.00012113,2]
[323628389,1714144265793,-273.82979921,0.00012113,2]
[323628390,1714144265804,-630.39,0.00012113,2]
[323628391,1714144265814,-920.66,0.00012113,2]
[323628392,1714144265825,-500.0,0.00012113,2]
[323628393,1714144265835,-1959.75,0.00012113,2]
[323628394,1714144265846,-500.0,0.00012113,2]
[323628395,1714144265857,-500.0,0.00012113,2]
[323628396,1714144265867,-500.0,0.00012113,2]
[323628397,1714144265878,-2715.22,0.00012113,2]
[323628398,1714144265889,-500.0,0.00012113,2]
[323628399,1714144265904,-500.0,0.00012113,2]
[323628400,1714144265917,-1289.14,0.00012113,2]
[323628401,1714144265928,-500.0,0.00012113,2]
[323628402,1714144265938,-500.0,0.00012113,2]
[323628403,1714144265950,-500.0,0.00012113,2]
[323628404,1714144265960,-1517.61,0.00012113,2]
[323628405,1714144265971,-500.0,0.00012113,2]
[323628406,1714144265981,-1544.68,0.00012113,2]
[323628407,1714144265992,-500.0,0.00012113,2]
[323628408,1714144266002,-2773.44,0.00012113,2]
[323628409,1714144266013,-1704.29,0.00012113,2]
[323628410,1714144266023,-781.06,0.00012113,2]
[323628411,1714144266034,-811.4,0.00012113,2]
[323628412,1714144266044,-3173.09,0.00012113,2]
[323628413,1714144266054,-500.0,0.00012113,2]
[323628414,1714144266064,-500.0,0.00012113,2]
[323628415,1714144266074,-500.0,0.00012113,2]
[323628416,1714144266084,-4359.8,0.00012113,2]
[323628417,1714144266095,-500.0,0.00012113,2]
[323628418,1714144266105,-500.0,0.00012113,2]
[323628419,1714144266116,-903.79,0.00012113,2]
[323628420,1714144266126,-1331.69,0.00012113,2]
[323628421,1714144266135,-500.0,0.00012113,2]
[323628422,1714144266145,-500.0,0.00012113,2]
[323628423,1714144266160,-500.0,0.00012113,2]
[323628424,1714144266170,-500.0,0.00012113,2]
[323628425,1714144266188,-500.0,0.00012113,2]
[323628426,1714144266198,-2216.77,0.00012113,2]
[323628427,1714144266208,-733.22,0.00012113,2]
[323628428,1714144266217,-12108.01,0.00012113,2]
[323628429,1714144266227,-500.0,0.00012113,2]
[323628430,1714144266236,-500.0,0.00012113,2]
[323628431,1714144266246,-500.0,0.00012113,2]
[323628432,1714144266256,-672.43,0.00012113,2]
[323628433,1714144266266,-500.0,0.00012113,2]
[323628434,1714144266276,-500.0,0.00012113,2]
[323628435,1714144266286,-500.0,0.00012113,2]
[323628436,1714144266296,-500.0,0.00012113,2]
[323628437,1714144266305,-754.15257926,0.00012116,2]
[323628438,1714144266315,-2295.0,0.00012124,2]
[323628439,1714144266325,-542.0,0.00012124,2]
[323628440,1714144266335,-1257.0,0.00012124,2]
[323628441,1714144266344,-807.0,0.00012124,2]
[323628442,1714144266355,-437.0,0.00012124,2]
[323628443,1714144266365,-610.0,0.00012124,2]
[323628444,1714144266375,-1858.0,0.00012124,2]
[323628445,1714144266385,-298.085,0.00012124,2]
[323628446,1714144266395,-3130.0,0.00012124,2]
[323628447,1714144266407,-2446.0,0.00012124,2]
[323628448,1714144266416,-402.0,0.00012124,2]
[323628449,1714144266426,-1474.0,0.00012124,2]
[323628450,1714144266435,-204.098,0.00012124,2]
[323628451,1714144266445,-243.225,0.00012124,2]
[323628452,1714144266455,-1641.0,0.00012124,2]
[323628453,1714144266465,-443.0,0.00012124,2]
[323628454,1714144266474,-229.0,0.00012124,2]
[323628455,1714144266484,-1140.0,0.00012124,2]
[323628456,1714144266494,-694.0,0.00012186,2]
[323628457,1714144266504,-500.0,0.00012196,2]
[323628458,1714144266514,-500.0,0.00012196,2]
[323628459,1714144266524,-500.0,0.00012196,2]
[323628460,1714144266534,-500.0,0.00012196,2]
[323628461,1714144266544,-535.58,0.00012196,2]
[323628462,1714144266554,-500.0,0.00012196,2]
[323628463,1714144266564,-500.0,0.00012196,2]
[323628464,1714144266574,-500.0,0.00012196,2]
[323628465,1714144266585,-500.0,0.00012196,2]
[323628466,1714144266598,-500.0,0.00012196,2]
[323628467,1714144266609,-500.0,0.00012196,2]
[323628468,1714144266619,-596.07,0.00012196,2]
[323628469,1714144266628,-500.0,0.00012196,2]
[323628470,1714144266640,-756.67,0.00012196,2]
[323628471,1714144266651,-514.83,0.00012196,2]
[323628472,1714144266666,-500.0,0.00012196,2]
[323628473,1714144266678,-500.0,0.00012196,2]
[323628474,1714144266689,-500.0,0.00012196,2]
[323628475,1714144266701,-505.92339226,0.00012196,2]
[323628476,1714144266711,-500.0,0.00012196,2]
[323628477,1714144266723,-500.0,0.00012196,2]
[323628478,1714144266734,-648.48,0.00012196,2]
[323628479,1714144266744,-500.0,0.00012196,2]
[323628480,1714144266755,-2642.42,0.00012196,2]
[323628481,1714144266766,-500.0,0.00012196,2]
[323628482,1714144266776,-500.0,0.00012196,2]
[323628483,1714144266786,-775.58,0.00012196,2]
[323628484,1714144266796,-500.0,0.00012196,2]
[323628485,1714144266807,-481.54,0.00012196,2]
[323628486,1714144266816,-500.0,0.00012196,2]
[323628487,1714144266827,-500.0,0.00012196,2]
[323628488,1714144266837,-500.0,0.00012196,2]
[323628489,1714144266848,-1312.69,0.00012196,2]
[323628490,1714144266859,-500.0,0.00012196,2]
[323628491,1714144266869,-500.0,0.00012196,2]
[323628492,1714144266879,-500.0,0.00012196,2]
[323628493,1714144266889,-500.0,0.00012196,2]
[323628494,1714144266900,-500.0,0.00012196,2]
[323628495,1714144266918,-500.0,0.00012196,2]
[323628496,1714144266928,-500.0,0.00012196,2]
[323628497,1714144266938,-783.4,0.00012196,2]
[323628498,1714144266948,-500.0,0.00012196,2]
[323628499,1714144266961,-500.0,0.00012196,2]
[323628500,1714144266971,-500.0,0.00012196,2]
[323628501,1714144266980,-500.0,0.00012196,2]
[323628502,1714144266990,-500.0,0.00012196,2]
[323628503,1714144267001,-500.0,0.00012196,2]
[323628504,1714144267011,-509.37037059,0.00012196,2]
[323628505,1714144267021,-501.51023486,0.00012196,2]
[323628506,1714144267030,-500.0,0.00012196,2]
[323628507,1714144267040,-500.0,0.00012196,2]
[323628508,1714144267050,-500.0,0.00012196,2]
[323628509,1714144267060,-500.0,0.00012196,2]
[323628510,1714144267070,-500.0,0.00012196,2]
[323628511,1714144267080,-500.0,0.00012196,2]
[323628512,1714144267090,-500.0,0.00012196,2]
[323628513,1714144267099,-500.0,0.00012196,2]
[323628514,1714144267109,-500.0,0.00012196,2]
[323628515,1714144267119,-500.0,0.00012196,2]
[323628516,1714144267128,-698.77,0.00012196,2]
[323628517,1714144267138,-500.0,0.00012196,2]
[323628518,1714144267147,-500.0,0.00012196,2]
[323628519,1714144267161,-500.0,0.00012196,2]
[323628520,1714144267170,-500.0,0.00012196,2]
[323628521,1714144267180,-500.0,0.00012196,2]
[323628522,1714144267189,-617.17995665,0.00012196,2]
[323628523,1714144267199,-500.0,0.00012196,2]
[323628524,1714144267209,-500.0,0.00012196,2]
[323628525,1714144267219,-500.0,0.00012196,2]
[323628526,1714144267228,-500.0,0.00012196,2]
[323628527,1714144267238,-500.0,0.00012196,2]
[323628528,1714144267248,-500.0,0.00012196,2]
[323628529,1714144267258,-500.0,0.00012196,2]
[323628530,1714144267268,-500.0,0.00012196,2]
[323628531,1714144267277,-735.81,0.00012196,2]
[323628532,1714144267287,-816.18,0.00012196,2]
[323628533,1714144267296,-500.0,0.00012196,2]
[323628534,1714144267306,-883.08,0.00012196,2]
[323628535,1714144267317,-538.73770036,0.00012196,2]
[323628536,1714144267326,-500.0,0.00012196,2]
[323628537,1714144267336,-435.96245604,0.00012196,2]
[323628538,1714144267345,-500.0,0.00012196,2]
[323628539,1714144267355,-500.0,0.00012196,2]
[323628540,1714144267366,-500.0,0.00012196,2]
[323628541,1714144267375,-500.0,0.00012196,2]
[323628542,1714144267385,-500.0,0.00012196,2]
[323628543,1714144267395,-500.0,0.00012196,2]
[323628544,1714144267406,-500.0,0.00012196,2]
[323628545,1714144267416,-500.0,0.00012196,2]
[323628546,1714144267425,-656.76,0.00012196,2]
[323628547,1714144267436,-500.0,0.00012196,2]
[323628548,1714144267445,-500.0,0.00012196,2]
[323628549,1714144267455,-500.0,0.00012196,2]
[323628550,1714144267464,-505.15,0.00012196,2]
[323628551,1714144267473,-500.0,0.00012196,2]
[323628552,1714144267483,-500.0,0.00012196,2]
[323628553,1714144267493,-500.0,0.00012196,2]
[323628554,1714144267503,-500.0,0.00012196,2]
[323628555,1714144267512,-500.0,0.00012196,2]
[323628556,1714144267522,-500.0,0.00012196,2]
[323628557,1714144267532,-391.7175687,0.00012196,2]
[323628558,1714144267541,-500.0,0.00012196,2]
[323628559,1714144267551,-500.0,0.00012196,2]
[323628560,1714144267560,-1504.28,0.00012196,2]
[323628561,1714144267570,-500.0,0.00012196,2]
[323628562,1714144267579,-500.0,0.00012196,2]
[323628563,1714144267589,-500.0,0.00012196,2]
[323628564,1714144267599,-700.46,0.00012196,2]
[323628565,1714144267609,-505.79,0.00012196,2]
[323628566,1714144267623,-176.7,0.00012196,2]
[323628567,1714144267633,-500.0,0.00012196,2]
[323628568,1714144267642,-500.0,0.00012196,2]
[323628569,1714144267652,-500.0,0.00012196,2]
[323628570,1714144267664,-500.0,0.00012196,2]
[323628571,1714144267674,-500.0,0.00012196,2]
[323628572,1714144267683,-500.0,0.00012196,2]
[323628573,1714144267693,-1660.69,0.00012196,2]
[323628574,1714144267702,-500.0,0.00012196,2]
[323628575,1714144267712,-650.53,0.00012196,2]
[323628576,1714144267721,-2081.9,0.00012196,2]
[323628577,1714144267730,-500.0,0.00012196,2]
[323628578,1714144267740,-500.0,0.00012196,2]
[323628579,1714144267750,-657.82,0.00012196,2]
[323628580,1714144267759,-500.0,0.00012196,2]
[323628581,1714144267768,-500.0,0.00012196,2]
[323628582,1714144267777,-500.0,0.00012196,2]
[323628583,1714144267787,-500.0,0.00012196,2]
[323628584,1714144267796,-500.0,0.00012196,2]
[323628585,1714144267805,-505.05,0.00012196,2]
[323628586,1714144267815,-500.0,0.00012196,2]
[323628587,1714144267825,-500.0,0.00012196,2]
[323628588,1714144267835,-500.0,0.00012196,2]
[323628589,1714144267844,-500.0,0.00012196,2]
[323628590,1714144267854,-500.0,0.00012196,2]
[323628591,1714144267865,-562.21,0.00012196,2]
[323628592,1714144267874,-500.0,0.00012196,2]
[323628593,1714144267883,-969.05,0.00012196,2]
[323628594,1714144267893,-500.0,0.00012196,2]
[323628595,1714144267902,-500.0,0.00012196,2]
[323628596,1714144267918,-590.94,0.00012196,2]
[323628597,1714144267928,-500.0,0.00012196,2]
[323628598,1714144267937,-2831.12,0.00012196,2]
[323628599,1714144267946,-844.43,0.00012196,2]
[323628600,1714144267955,-500.0,0.00012196,2]
[323628601,1714144267965,-500.0,0.00012196,2]
[323628602,1714144267974,-500.0,0.00012196,2]
[323628603,1714144267983,-500.0,0.00012196,2]
[323628604,1714144268056,-500.0,0.00012196,2]
[323628605,1714144268065,-500.0,0.00012196,2]
[323628606,1714144268077,-500.0,0.00012196,2]
[323628607,1714144268087,-500.0,0.00012196,2]
[323628608,1714144268096,-500.0,0.00012196,2]
[323628609,1714144268105,-932.13,0.00012196,2]
[323628610,1714144268114,-500.0,0.00012196,2]
[323628611,1714144268124,-500.0,0.00012196,2]
[323628612,1714144268134,-500.0,0.00012196,2]
[323628613,1714144268144,-500.0,0.00012196,2]
[323628614,1714144268158,-500.0,0.00012196,2]
[323628615,1714144268168,-520.61,0.00012196,2]
[323628616,1714144268178,-500.0,0.00012196,2]
[323628617,1714144268189,-500.0,0.00012196,2]
[323628618,1714144268199,-501.3240838,0.00012196,2]
[323628619,1714144268208,-500.0,0.00012196,2]
[323628620,1714144268218,-500.0,0.00012196,2]
[323628621,1714144268228,-942.72,0.00012196,2]
[323628622,1714144268237,-500.0,0.00012196,2]
[323628623,1714144268247,-500.0,0.00012196,2]
[323628624,1714144268256,-500.0,0.00012196,2]
[323628625,1714144268266,-500.0,0.00012196,2]
[323628626,1714144268276,-969.99,0.00012196,2]
[323628627,1714144268286,-749.77,0.00012196,2]
[323628628,1714144268295,-500.0,0.00012196,2]
[323628629,1714144268305,-500.0,0.00012196,2]
[323628630,1714144268316,-500.0,0.00012196,2]
[323628631,1714144268325,-500.0,0.00012196,2]
[323628632,1714144268335,-500.0,0.00012196,2]
[323628633,1714144268345,-500.0,0.00012196,2]
[323628634,1714144268357,-703.62,0.00012196,2]
[323628635,1714144268367,-1102.31,0.00012196,2]
[323628636,1714144268377,-500.0,0.00012196,2]
[323628637,1714144268387,-500.0,0.00012196,2]
[323628638,1714144268397,-677.3,0.00012196,2]
[323628639,1714144268410,-500.0,0.00012196,2]
[323628640,1714144268419,-500.0,0.00012196,2]
[323628641,1714144268428,-500.0,0.00012196,2]
[323628642,1714144268438,-500.0,0.00012196,2]
[323628643,1714144268448,-500.0,0.00012196,2]
[323628644,1714144268457,-500.0,0.00012196,2]
[323628645,1714144268467,-500.0,0.00012198,2]
[323628646,1714144268477,-500.0,0.00012199,2]
[323628647,1714144268486,-500.0,0.00012199,2]
[323628648,1714144268495,-546.92,0.00012199,2]
[323628649,1714144268505,-500.0,0.00012199,2]
[323628650,1714144268515,-806.39,0.00012199,2]
[323628651,1714144268524,-500.0,0.00012199,2]
[323628652,1714144268533,-500.0,0.00012199,2]
[323628653,1714144268542,-632.04688161,0.00012199,2]
[323628654,1714144268553,-590.07,0.00012199,2]
[323628655,1714144268564,-500.0,0.00012199,2]
[323628656,1714144268574,-500.0,0.00012199,2]
[323628657,1714144268584,-918.04,0.00012199,2]
[323628658,1714144268595,-500.0,0.00012199,2]
[323628659,1714144268605,-500.0,0.00012199,2]
[323628660,1714144268616,-670.75,0.00012199,2]
[323628661,1714144268625,-500.0,0.00012199,2]
[323628662,1714144268635,-500.0,0.00012199,2]
[323628663,1714144268646,-500.0,0.00012199,2]
[323628664,1714144268657,-500.0,0.00012199,2]
[323628665,1714144268666,-500.0,0.00012199,2]
[323628666,1714144268676,-833.03,0.00012199,2]
[323628667,1714144268686,-500.0,0.00012199,2]
[323628668,1714144268696,-500.0,0.00012199,2]
[323628669,1714144268705,-500.0,0.00012199,2]
[323628670,1714144268715,-500.0,0.00012199,2]
[323628671,1714144268724,-500.0,0.00012199,2]
[323628672,1714144268734,-661.93,0.00012199,2]
[323628673,1714144268743,-500.0,0.00012199,2]
[323628674,1714144268752,-500.0,0.00012199,2]
[323628675,1714144268762,-500.0,0.00012199,2]
[323628676,1714144268772,-500.0,0.00012199,2]
[323628677,1714144268781,-500.0,0.00012199,2]
[323628678,1714144268790,-881.03,0.00012199,2]
[323628679,1714144268800,-500.0,0.00012199,2]
[323628680,1714144268809,-500.0,0.00012199,2]
[323628681,1714144268820,-500.0,0.00012199,2]
[323628682,1714144268829,-468.14,0.00012199,2]
[323628683,1714144268839,-697.79,0.00012199,2]
[323628684,1714144268848,-636.22100924,0.00012199,2]
[323628685,1714144268858,-717.33,0.00012199,2]
[323628686,1714144268867,-500.0,0.00012199,2]
[323628687,1714144268876,-500.0,0.00012199,2]
[323628688,1714144268886,-622.4,0.00012199,2]
[323628689,1714144268896,-500.0,0.00012199,2]
[323628690,1714144268908,-500.0,0.00012199,2]
[323628691,1714144268918,-500.0,0.00012199,2]
[323628692,1714144268927,-500.0,0.00012199,2]
[323628693,1714144268936,-500.0,0.00012199,2]
[323628694,1714144268947,-606.6,0.00012199,2]
[323628695,1714144268957,-500.0,0.00012199,2]
[323628696,1714144268967,-500.0,0.00012199,2]
[323628697,1714144268976,-500.0,0.00012199,2]
[323628698,1714144268986,-500.0,0.00012199,2]
[323628699,1714144268995,-500.0,0.00012199,2]
[323628700,1714144269005,-506.89,0.00012199,2]
[323628701,1714144269015,-500.0,0.00012199,2]
[323628702,1714144269025,-539.0,0.00012199,2]
[323628703,1714144269035,-500.0,0.00012199,2]
[323628704,1714144269045,-500.0,0.00012199,2]
[323628705,1714144269055,-500.0,0.00012199,2]
[323628706,1714144269064,-500.0,0.00012199,2]
[323628707,1714144269074,-500.0,0.00012199,2]
[323628708,1714144269084,-570.27,0.00012199,2]
[323628709,1714144269094,-500.0,0.00012199,2]
[323628710,1714144269104,-809.01,0.00012199,2]
[323628711,1714144269113,-500.0,0.00012199,2]
[323628712,1714144269123,-564.59,0.00012199,2]
[323628713,1714144269133,-500.0,0.00012199,2]
[323628714,1714144269143,-500.0,0.00012199,2]
[323628715,1714144269152,-500.0,0.00012199,2]
[323628716,1714144269169,-500.0,0.00012199,2]
[323628717,1714144269183,-500.0,0.00012199,2]
[323628718,1714144269194,-747.09,0.00012199,2]
[323628719,1714144269204,-566.68,0.00012199,2]
[323628720,1714144269214,-500.0,0.00012199,2]
[323628721,1714144269224,-500.0,0.00012199,2]
[323628722,1714144269234,-946.11,0.00012199,2]
[323628723,1714144269245,-500.0,0.00012199,2]
[323628724,1714144269256,-500.0,0.00012199,2]
[323628725,1714144269266,-657.11,0.00012199,2]
[323628726,1714144269276,-500.0,0.00012199,2]
[323628727,1714144269286,-500.0,0.00012199,2]
[323628728,1714144269296,-500.0,0.00012199,2]
[323628729,1714144269307,-500.0,0.00012199,2]
[323628730,1714144269318,-209.96293824,0.00012199,2]
[323628731,1714144269329,-500.0,0.00012199,2]
[323628732,1714144269339,-689.01,0.00012199,2]
[323628733,1714144269349,-500.0,0.00012199,2]
[323628734,1714144269359,-500.0,0.00012199,2]
[323628735,1714144269370,-500.0,0.00012199,2]
[323628736,1714144269379,-500.0,0.00012199,2]
[323628737,1714144269390,-500.0,0.00012199,2]
[323628738,1714144269400,-500.0,0.00012199,2]
[323628739,1714144269418,-500.0,0.00012199,2]
[323628740,1714144269427,-500.0,0.00012199,2]
[323628741,1714144269437,-565.55,0.00012199,2]
[323628742,1714144269447,-934.2,0.00012199,2]
[323628743,1714144269456,-838.38,0.00012199,2]
[323628744,1714144269466,-500.0,0.00012199,2]
[323628745,1714144269476,-694.38,0.00012199,2]
[323628746,1714144269486,-689.85,0.00012199,2]
[323628747,1714144269495,-500.0,0.00012199,2]
[323628748,1714144269505,-500.0,0.00012199,2]
[323628749,1714144269516,-500.0,0.00012199,2]
[323628750,1714144269526,-500.0,0.00012199,2]
[323628751,1714144269536,-815.04,0.00012199,2]
[323628752,1714144269547,-644.53,0.00012199,2]
[323628753,1714144269557,-500.0,0.00012199,2]
[323628754,1714144269568,-500.0,0.00012199,2]
[323628755,1714144269578,-500.0,0.00012199,2]
[323628756,1714144269588,-500.0,0.00012199,2]
[323628757,1714144269599,-500.0,0.00012199,2]
[323628758,1714144269609,-500.0,0.00012199,2]
[323628759,1714144269623,-728.02,0.00012199,2]
[323628760,1714144269634,-500.0,0.00012199,2]
[323628761,1714144269644,-500.0,0.00012199,2]
[323628762,1714144269654,-769.5,0.00012199,2]
[323628763,1714144269671,-500.0,0.00012199,2]
[323628764,1714144269681,-500.0,0.00012199,2]
[323628765,1714144269692,-500.0,0.00012199,2]
[323628766,1714144269703,-500.0,0.00012199,2]
[323628767,1714144269713,-500.0,0.00012199,2]
[323628768,1714144269723,-500.0,0.00012199,2]
[323628769,1714144269732,-565.75,0.00012199,2]
[323628770,1714144269742,-500.0,0.00012199,2]
[323628771,1714144269752,-500.0,0.00012199,2]
[323628772,1714144269762,-500.0,0.00012199,2]
[323628773,1714144269772,-570.98,0.00012199,2]
[323628774,1714144269782,-1856.63,0.00012199,2]
[323628775,1714144269791,-500.0,0.00012199,2]
[323628776,1714144269801,-815.7,0.00012199,2]
[323628777,1714144269811,-500.0,0.00012199,2]